[Event "World Junior Chess Championship U20 2022"]
[White "Dimakis, Stavros"]
[Black "Olsen, Filip Boe"]
[WhiteFideId "25879472"]
[BlackFideId "1440640"]
[WhiteElo "1832"]
[BlackElo "2433"]
[Result "0-1"]
[Round "04"]
[TimeControl "5400+30"]
[Date "2022.10.14"]
[WhiteClock "0:01:33"]
[BlackClock "0:21:33"]

1. e4 {[%clk 1:27:52]}  c5 {[%clk 1:30:47]} 2. Nf3 {[%clk 1:28:17]}  d6 {[%clk 1:31:08]} 3. d4 {[%clk 1:28:43]}  cxd4 {[%clk 1:31:25]} 4. Nxd4 {[%clk 1:29:09]}  Nf6 {[%clk 1:31:42]} 5. Nc3 {[%clk 1:29:34]}  a6 {[%clk 1:32:06]} 6. f3 {[%clk 1:29:44]}  e5 {[%clk 1:32:17]} 7. Nb3 {[%clk 1:30:10]}  Be6 {[%clk 1:32:27]} 8. Be3 {[%clk 1:30:33]}  h5 {[%clk 1:32:22]} 9. Nd5 {[%clk 1:30:50]}  Bxd5 {[%clk 1:31:47]} 10. exd5 {[%clk 1:31:13]}  g6 {[%clk 1:31:47]} 11. Qd2 {[%clk 1:31:20]}  Bg7 {[%clk 1:31:30]} 12. c4 {[%clk 1:24:17]}  O-O {[%clk 1:29:08]} 13. O-O-O {[%clk 1:19:12]}  a5 {[%clk 1:25:11]} 14. a3 {[%clk 1:05:37]}  Nbd7 {[%clk 1:23:36]} 15. Kb1 {[%clk 1:04:41]}  Qc7 {[%clk 1:18:10]} 16. h4 {[%clk 0:51:38]}  a4 {[%clk 1:14:48]} 17. Nc1 {[%clk 0:51:19]}  e4 {[%clk 1:14:32]} 18. Bd4 {[%clk 0:39:39]}  Rfe8 {[%clk 1:07:23]} 19. Qc3 {[%clk 0:37:59]}  Rac8 {[%clk 1:06:46]} 20. g4 {[%clk 0:35:19]}  exf3 {[%clk 1:00:17]} 21. g5 {[%clk 0:34:27]}  Ne4 {[%clk 1:00:03]} 22. Qxf3 {[%clk 0:34:23]}  Bxd4 {[%clk 0:45:22]} 23. Rxd4 {[%clk 0:34:43]}  Ndc5 {[%clk 0:45:24]} 24. Rh2 {[%clk 0:17:29]}  Re5 {[%clk 0:43:11]} 25. Bd3 {[%clk 0:13:35]}  Rce8 {[%clk 0:41:46]} 26. Bc2 {[%clk 0:07:36]}  Qe7 {[%clk 0:32:05]} 27. Rg2 {[%clk 0:06:12]}  Qd7 {[%clk 0:25:01]} 28. Qd1 {[%clk 0:01:28]}  Qh3 {[%clk 0:23:09]} 29. Re2 {[%clk 0:01:40]}  Qxh4 {[%clk 0:22:43]} 30. Ka1 {[%clk 0:01:24]}  Qxg5 {[%clk 0:22:40]} 31. Nd3 {[%clk 0:01:03]}  Nxd3 {[%clk 0:22:31]} 32. Qxd3 {[%clk 0:01:11]}  Qc1+ {[%clk 0:21:20]} 33. Bb1 {[%clk 0:01:33]}  Nc5 {[%clk 0:21:33]} 0-1


[Site "http://www.chessbomb.com"]

[Event "World Junior Chess Championship U20 2022"]
[White "Vairo, Rocco Enrico"]
[Black "Cappelletto, Joshuaede"]
[WhiteFideId "2839437"]
[BlackFideId "2824383"]
[WhiteElo "1960"]
[BlackElo "2337"]
[Result "1/2-1/2"]
[Round "04"]
[TimeControl "5400+30"]
[Date "2022.10.14"]
[WhiteClock "0:04:36"]
[BlackClock "0:09:14"]

1. e4 {[%clk 1:29:46]}  c5 {[%clk 1:30:53]} 2. c3 {[%clk 1:30:00]}  d5 {[%clk 1:31:13]} 3. exd5 {[%clk 1:30:22]}  Nf6 {[%clk 1:31:38]} 4. Bb5+ {[%clk 1:29:55]}  Nbd7 {[%clk 1:29:01]} 5. d4 {[%clk 1:23:15]}  a6 {[%clk 1:21:59]} 6. Ba4 {[%clk 1:08:49]}  b5 {[%clk 1:21:33]} 7. Bb3 {[%clk 1:09:14]}  c4 {[%clk 1:19:00]} 8. Bc2 {[%clk 1:09:14]}  Bb7 {[%clk 1:19:19]} 9. Nf3 {[%clk 1:09:39]}  Bxd5 {[%clk 1:17:55]} 10. O-O {[%clk 1:09:10]}  e6 {[%clk 1:18:13]} 11. Re1 {[%clk 1:06:53]}  Be7 {[%clk 1:18:23]} 12. Bf4 {[%clk 1:05:53]}  O-O {[%clk 1:18:37]} 13. Nbd2 {[%clk 1:05:31]}  Qb6 {[%clk 1:18:40]} 14. Ne5 {[%clk 1:00:32]}  Qb7 {[%clk 1:12:20]} 15. Re3 {[%clk 0:57:24]}  Rfd8 {[%clk 1:09:59]} 16. Rg3 {[%clk 0:49:57]}  Nf8 {[%clk 1:08:10]} 17. h4 {[%clk 0:37:42]}  Ne4 {[%clk 0:58:42]} 18. Nxe4 {[%clk 0:32:29]}  Bxe4 {[%clk 0:59:00]} 19. h5 {[%clk 0:29:54]}  Bd6 {[%clk 0:35:02]} 20. Qg4 {[%clk 0:08:06]}  g6 {[%clk 0:33:28]} 21. hxg6 {[%clk 0:08:01]}  fxg6 {[%clk 0:33:51]} 22. Bxe4 {[%clk 0:06:14]}  Qxe4 {[%clk 0:34:13]} 23. Bg5 {[%clk 0:06:22]}  Qxg4 {[%clk 0:34:33]} 24. Rxg4 {[%clk 0:06:48]}  Rdc8 {[%clk 0:33:20]} 25. Re4 {[%clk 0:04:52]}  Bxe5 {[%clk 0:29:16]} 26. Rxe5 {[%clk 0:05:03]}  Rc6 {[%clk 0:29:35]} 27. Rae1 {[%clk 0:04:34]}  Kf7 {[%clk 0:29:05]} 28. R5e3 {[%clk 0:04:34]}  Kg7 {[%clk 0:23:27]} 29. Kh2 {[%clk 0:02:07]}  Ra7 {[%clk 0:22:51]} 30. Kg3 {[%clk 0:01:35]}  h6 {[%clk 0:22:05]} 31. Bf4 {[%clk 0:02:00]}  Rf7 {[%clk 0:22:07]} 32. Be5+ {[%clk 0:02:21]}  Kh7 {[%clk 0:22:26]} 33. Rf3 {[%clk 0:02:34]}  Rf5 {[%clk 0:20:35]} 34. Rxf5 {[%clk 0:02:47]}  gxf5 {[%clk 0:20:35]} 35. Bf4 {[%clk 0:02:47]}  Kg6 {[%clk 0:21:03]} 36. Rh1 {[%clk 0:01:32]}  h5 {[%clk 0:21:26]} 37. Kf3 {[%clk 0:01:51]}  Nd7 {[%clk 0:17:07]} 38. Ke2 {[%clk 0:01:06]}  Rc8 {[%clk 0:17:12]} 39. Rh3 {[%clk 0:01:06]}  Rh8 {[%clk 0:16:39]} 40. Re3 {[%clk 0:00:45]}  Kf7 {[%clk 0:16:55]} 41. Bg5 {[%clk 0:00:35]}  Nb6 {[%clk 0:16:21]} 42. Rh3 {[%clk 0:21:17]}  Nd5 {[%clk 0:43:20]} 43. Kf3 {[%clk 0:20:29]}  a5 {[%clk 0:41:42]} 44. Bf4 {[%clk 0:15:16]}  b4 {[%clk 0:41:10]} 45. Be5 {[%clk 0:15:32]}  Rh7 {[%clk 0:40:06]} 46. Ke2 {[%clk 0:15:11]}  Kg6 {[%clk 0:36:38]} 47. Rg3+ {[%clk 0:08:11]}  Kh6 {[%clk 0:36:59]} 48. Kd2 {[%clk 0:08:05]}  Rb7 {[%clk 0:37:02]} 49. Kc2 {[%clk 0:08:02]}  a4 {[%clk 0:31:17]} 50. Rg8 {[%clk 0:06:35]}  Rb6 {[%clk 0:26:01]} 51. cxb4 {[%clk 0:06:35]}  Nxb4+ {[%clk 0:26:05]} 52. Kc3 {[%clk 0:02:05]}  Nxa2+ {[%clk 0:23:27]} 53. Kxc4 {[%clk 0:02:31]}  Rxb2 {[%clk 0:23:51]} 54. Kc5 {[%clk 0:02:58]}  a3 {[%clk 0:12:53]} 55. Kd6 {[%clk 0:03:22]}  Nc3 {[%clk 0:07:51]} 56. Kxe6 {[%clk 0:03:36]}  a2 {[%clk 0:08:04]} 57. Rh8+ {[%clk 0:03:18]}  Kg6 {[%clk 0:08:23]} 58. Rg8+ {[%clk 0:03:44]}  Kh7 {[%clk 0:08:49]} 59. Rh8+ {[%clk 0:04:09]}  Kg6 {[%clk 0:09:14]} 60. Rg8+ {[%clk 0:04:36]} 1/2-1/2


[Site "http://www.chessbomb.com"]

[Event "World Junior Chess Championship U20 2022"]
[White "Raahul, V S"]
[Black "Bettalli, Francesco"]
[WhiteFideId "25035525"]
[BlackFideId "2816453"]
[WhiteElo "2333"]
[BlackElo "2267"]
[Result "1/2-1/2"]
[Round "04"]
[TimeControl "5400+30"]
[Date "2022.10.14"]
[WhiteClock "0:15:15"]
[BlackClock "0:01:37"]

1. c4 {[%clk 1:30:59]}  c5 {[%clk 1:29:08]} 2. Nc3 {[%clk 1:30:47]}  g6 {[%clk 1:29:32]} 3. Nf3 {[%clk 1:31:01]}  Bg7 {[%clk 1:29:14]} 4. d4 {[%clk 1:30:32]}  cxd4 {[%clk 1:29:37]} 5. Nxd4 {[%clk 1:30:59]}  Nc6 {[%clk 1:29:58]} 6. Nc2 {[%clk 1:31:24]}  Bxc3+ {[%clk 1:30:20]} 7. bxc3 {[%clk 1:31:52]}  Nf6 {[%clk 1:29:35]} 8. f3 {[%clk 1:32:03]}  Qa5 {[%clk 1:22:06]} 9. Bd2 {[%clk 1:31:23]}  d6 {[%clk 1:19:29]} 10. e4 {[%clk 1:31:34]}  Nd7 {[%clk 1:18:03]} 11. Nb4 {[%clk 1:29:11]}  Nc5 {[%clk 1:18:11]} 12. Be2 {[%clk 1:25:48]}  Bd7 {[%clk 1:12:00]} 13. O-O {[%clk 1:24:43]}  O-O {[%clk 1:10:54]} 14. Nd5 {[%clk 1:19:35]}  Rac8 {[%clk 1:03:21]} 15. Qe1 {[%clk 1:14:02]}  f6 {[%clk 0:52:35]} 16. h4 {[%clk 1:14:09]}  Kh8 {[%clk 0:46:08]} 17. Be3 {[%clk 1:05:41]}  Rf7 {[%clk 0:43:08]} 18. Bd4 {[%clk 0:58:47]}  e6 {[%clk 0:25:58]} 19. Nb4 {[%clk 0:49:54]}  Na4 {[%clk 0:20:29]} 20. Nxc6 {[%clk 0:45:44]}  Rxc6 {[%clk 0:15:53]} 21. Rb1 {[%clk 0:44:19]}  e5 {[%clk 0:16:03]} 22. Rb5 {[%clk 0:44:43]}  Qc7 {[%clk 0:16:20]} 23. Be3 {[%clk 0:44:16]}  Be6 {[%clk 0:16:32]} 24. Rb4 {[%clk 0:41:12]}  Nb6 {[%clk 0:16:41]} 25. Qf2 {[%clk 0:41:05]}  Nc8 {[%clk 0:14:06]} 26. Rfb1 {[%clk 0:35:37]}  b6 {[%clk 0:13:25]} 27. Qf1 {[%clk 0:36:02]}  a5 {[%clk 0:11:04]} 28. Ra4 {[%clk 0:36:00]}  Kg7 {[%clk 0:10:23]} 29. f4 {[%clk 0:32:15]}  exf4 {[%clk 0:08:00]} 30. Bxf4 {[%clk 0:32:38]}  f5 {[%clk 0:07:32]} 31. exf5 {[%clk 0:33:05]}  Bxf5 {[%clk 0:07:58]} 32. Rb2 {[%clk 0:33:21]}  Qa7 {[%clk 0:04:39]} 33. Qf2 {[%clk 0:32:25]}  Be6 {[%clk 0:04:23]} 34. Qd4+ {[%clk 0:31:06]}  Kg8 {[%clk 0:04:52]} 35. Bh6 {[%clk 0:26:41]}  Ne7 {[%clk 0:04:41]} 36. Bd3 {[%clk 0:26:07]}  Bf5 {[%clk 0:03:58]} 37. Be3 {[%clk 0:23:49]}  Bxd3 {[%clk 0:03:45]} 38. Qxd3 {[%clk 0:24:17]}  Qd7 {[%clk 0:03:08]} 39. c5 {[%clk 0:22:34]}  Rxc5 {[%clk 0:02:26]} 40. Bxc5 {[%clk 0:22:58]}  Qxa4 {[%clk 0:02:55]} 41. Bxd6 {[%clk 0:22:32]}  Qxh4 {[%clk 0:01:32]} 42. Re2 {[%clk 0:22:40]}  Qf6 {[%clk 0:24:32]} 43. Bg3 {[%clk 0:47:22]}  Nc6 {[%clk 0:22:11]} 44. Bf2 {[%clk 0:44:22]}  Re7 {[%clk 0:15:12]} 45. Rb2 {[%clk 0:42:21]}  Ne5 {[%clk 0:10:50]} 46. Qe4 {[%clk 0:31:32]}  Qg5 {[%clk 0:08:30]} 47. Rb1 {[%clk 0:29:12]}  Rf7 {[%clk 0:08:40]} 48. Qa8+ {[%clk 0:28:19]}  Rf8 {[%clk 0:09:07]} 49. Qd5+ {[%clk 0:28:41]}  Rf7 {[%clk 0:09:36]} 50. Qa8+ {[%clk 0:28:37]}  Kg7 {[%clk 0:07:59]} 51. Qc8 {[%clk 0:21:59]}  Ng4 {[%clk 0:03:24]} 52. Bd4+ {[%clk 0:15:35]}  Kh6 {[%clk 0:03:53]} 53. g3 {[%clk 0:12:46]}  Qh5 {[%clk 0:01:06]} 54. Rb2 {[%clk 0:13:12]}  Qh3 {[%clk 0:00:38]} 55. Be3+ {[%clk 0:13:12]}  g5 {[%clk 0:00:38]} 56. Bxg5+ {[%clk 0:13:50]}  Kh5 {[%clk 0:01:04]} 57. Bf4 {[%clk 0:14:14]}  Rxf4 {[%clk 0:00:40]} 58. gxf4 {[%clk 0:14:01]}  Qg3+ {[%clk 0:01:03]} 59. Kh1 {[%clk 0:13:02]}  Qf3+ {[%clk 0:00:58]} 60. Kg1 {[%clk 0:13:29]}  Qg3+ {[%clk 0:01:01]} 61. Kh1 {[%clk 0:13:58]}  Qe1+ {[%clk 0:00:35]} 62. Kg2 {[%clk 0:14:27]}  Qe4+ {[%clk 0:01:04]} 63. Kg1 {[%clk 0:14:20]}  Qe3+ {[%clk 0:01:11]} 64. Kg2 {[%clk 0:14:47]}  Qe4+ {[%clk 0:01:20]} 65. Kg1 {[%clk 0:15:15]}  Qe3+ {[%clk 0:01:37]} 1/2-1/2


[Site "http://www.chessbomb.com"]

[Event "World Junior Chess Championship U20 2022"]
[White "Gagic, Milan A"]
[Black "Abdulla, Younes Alkhemeiri"]
[WhiteFideId "979805"]
[BlackFideId "9324577"]
[WhiteElo "2125"]
[BlackElo "1405"]
[Result "1-0"]
[Round "04"]
[TimeControl "5400+30"]
[Date "2022.10.14"]
[WhiteClock "0:25:21"]
[BlackClock "0:50:05"]

1. e4 {[%clk 1:30:56]}  c6 {[%clk 1:30:48]} 2. Nc3 {[%clk 1:30:37]}  d5 {[%clk 1:30:48]} 3. d4 {[%clk 1:30:44]}  dxe4 {[%clk 1:30:59]} 4. Nxe4 {[%clk 1:31:09]}  Nf6 {[%clk 1:31:14]} 5. Nxf6+ {[%clk 1:30:23]}  exf6 {[%clk 1:31:38]} 6. c3 {[%clk 1:29:53]}  Bd6 {[%clk 1:31:58]} 7. Bd3 {[%clk 1:30:19]}  O-O {[%clk 1:32:08]} 8. Qc2 {[%clk 1:30:46]}  h5 {[%clk 1:31:49]} 9. Ne2 {[%clk 1:31:02]}  h4 {[%clk 1:30:57]} 10. h3 {[%clk 1:30:42]}  Be6 {[%clk 1:29:36]} 11. O-O {[%clk 1:29:19]}  Nd7 {[%clk 1:26:47]} 12. Nf4 {[%clk 1:23:19]}  Bxf4 {[%clk 1:20:32]} 13. Bxf4 {[%clk 1:23:43]}  Re8 {[%clk 1:20:11]} 14. Rfe1 {[%clk 1:16:33]}  Nb6 {[%clk 1:20:14]} 15. Qd1 {[%clk 1:14:35]}  g6 {[%clk 1:18:48]} 16. Qf3 {[%clk 1:05:21]}  Nd5 {[%clk 1:14:17]} 17. Bd2 {[%clk 1:04:21]}  Kg7 {[%clk 1:08:35]} 18. c4 {[%clk 0:52:33]}  Ne7 {[%clk 1:08:03]} 19. Bc3 {[%clk 0:46:47]}  Nf5 {[%clk 1:05:23]} 20. d5 {[%clk 0:36:48]}  cxd5 {[%clk 1:03:34]} 21. Red1 {[%clk 0:34:06]}  Nh6 {[%clk 0:57:52]} 22. Bc2 {[%clk 0:30:39]}  Bf5 {[%clk 0:56:26]} 23. Rxd5 {[%clk 0:28:59]}  Qc7 {[%clk 0:54:50]} 24. Bxf5 {[%clk 0:29:01]}  Nxf5 {[%clk 0:55:13]} 25. Rxf5 {[%clk 0:26:23]}  gxf5 {[%clk 0:55:08]} 26. Qxf5 {[%clk 0:26:14]}  Re6 {[%clk 0:54:09]} 27. Qg5+ {[%clk 0:25:50]}  Kf8 {[%clk 0:53:29]} 28. Bb4+ {[%clk 0:25:26]}  Re7 {[%clk 0:50:05]} 29. Qxf6 {[%clk 0:25:21]} 1-0


[Site "http://www.chessbomb.com"]

[Event "World Junior Chess Championship U20 2022"]
[White "Vivoli, Alessandro"]
[Black "Carroll, Peter"]
[WhiteFideId "11800240"]
[BlackFideId "2510243"]
[WhiteElo "1555"]
[BlackElo "2115"]
[Result "0-1"]
[Round "04"]
[TimeControl "5400+30"]
[Date "2022.10.14"]
[WhiteClock "0:47:38"]
[BlackClock "1:16:09"]

1. e4 {[%clk 1:30:54]}  c5 {[%clk 1:22:26]} 2. Nf3 {[%clk 1:31:18]}  d6 {[%clk 1:22:53]} 3. d4 {[%clk 1:31:43]}  cxd4 {[%clk 1:23:20]} 4. Nxd4 {[%clk 1:32:03]}  Nf6 {[%clk 1:23:49]} 5. Nc3 {[%clk 1:32:21]}  a6 {[%clk 1:24:16]} 6. Be3 {[%clk 1:32:42]}  e6 {[%clk 1:24:40]} 7. f3 {[%clk 1:32:50]}  Nc6 {[%clk 1:25:03]} 8. Qd2 {[%clk 1:32:54]}  Be7 {[%clk 1:25:26]} 9. O-O-O {[%clk 1:33:03]}  O-O {[%clk 1:25:51]} 10. g4 {[%clk 1:33:18]}  Nxd4 {[%clk 1:26:18]} 11. Bxd4 {[%clk 1:33:29]}  b5 {[%clk 1:26:45]} 12. g5 {[%clk 1:31:11]}  Nd7 {[%clk 1:26:59]} 13. h4 {[%clk 1:31:03]}  Qc7 {[%clk 1:27:24]} 14. Kb1 {[%clk 1:25:40]}  b4 {[%clk 1:25:13]} 15. Ne2 {[%clk 1:25:49]}  Ne5 {[%clk 1:25:01]} 16. Bg2 {[%clk 1:18:42]}  Nc4 {[%clk 1:21:41]} 17. Qe1 {[%clk 1:09:21]}  e5 {[%clk 1:19:02]} 18. Bf2 {[%clk 1:08:17]}  Be6 {[%clk 1:19:26]} 19. f4 {[%clk 0:59:51]}  Rfc8 {[%clk 1:15:35]} 20. Rc1 {[%clk 0:53:13]}  Na3+ {[%clk 1:15:48]} 21. bxa3 {[%clk 0:47:38]}  Qc4 {[%clk 1:16:09]} 0-1


[Site "http://www.chessbomb.com"]

[Event "World Junior Chess Championship U20 2022"]
[White "Ghaith, Saeed Alnuaimi"]
[Black "Porcu, Riccardo"]
[WhiteFideId "9309152"]
[BlackFideId "28536690"]
[WhiteElo "1269"]
[BlackElo "1759"]
[Result "0-1"]
[Round "04"]
[TimeControl "5400+30"]
[Date "2022.10.14"]
[WhiteClock "1:22:35"]
[BlackClock "0:16:31"]

1. d4 {[%clk 1:30:57]}  Nf6 {[%clk 1:30:47]} 2. c4 {[%clk 1:31:26]}  e6 {[%clk 1:31:10]} 3. Nf3 {[%clk 1:31:50]}  d5 {[%clk 1:31:32]} 4. g3 {[%clk 1:32:16]}  Bb4+ {[%clk 1:31:53]} 5. Bd2 {[%clk 1:32:40]}  Be7 {[%clk 1:32:19]} 6. Bg2 {[%clk 1:33:01]}  O-O {[%clk 1:32:19]} 7. O-O {[%clk 1:33:27]}  c6 {[%clk 1:33:10]} 8. Nc3 {[%clk 1:33:41]}  dxc4 {[%clk 1:32:22]} 9. Bf4 {[%clk 1:32:59]}  Nd5 {[%clk 1:30:58]} 10. a4 {[%clk 1:32:42]}  Nxf4 {[%clk 1:19:48]} 11. gxf4 {[%clk 1:33:04]}  Bd6 {[%clk 1:08:11]} 12. e3 {[%clk 1:33:25]}  a5 {[%clk 1:01:10]} 13. Qe2 {[%clk 1:32:47]}  Nd7 {[%clk 0:56:39]} 14. Qxc4 {[%clk 1:33:07]}  Nb6 {[%clk 0:56:53]} 15. Qd3 {[%clk 1:33:25]}  Nd5 {[%clk 0:47:42]} 16. Kh1 {[%clk 1:28:37]}  b6 {[%clk 0:46:38]} 17. Ne4 {[%clk 1:28:30]}  Ba6 {[%clk 0:44:51]} 18. Qd2 {[%clk 1:28:08]}  Bxf1 {[%clk 0:43:23]} 19. Rxf1 {[%clk 1:28:37]}  Be7 {[%clk 0:41:17]} 20. Rg1 {[%clk 1:27:48]}  Rc8 {[%clk 0:38:06]} 21. Bh3 {[%clk 1:27:28]}  Nf6 {[%clk 0:32:53]} 22. Ng3 {[%clk 1:27:45]}  Qd5 {[%clk 0:29:30]} 23. Qe2 {[%clk 1:26:24]}  Ne4 {[%clk 0:20:50]} 24. Nf1 {[%clk 1:26:29]}  c5 {[%clk 0:18:40]} 25. Bg2 {[%clk 1:26:32]}  Qh5 {[%clk 0:18:12]} 26. Ng3 {[%clk 1:25:13]}  Nxg3+ {[%clk 0:17:47]} 27. fxg3 {[%clk 1:25:13]}  cxd4 {[%clk 0:17:54]} 28. exd4 {[%clk 1:25:57]}  Qf5 {[%clk 0:16:47]} 29. Qa6 {[%clk 1:24:21]}  Bf6 {[%clk 0:15:36]} 30. Qxb6 {[%clk 1:22:16]}  Rb8 {[%clk 0:16:04]} 31. Qxa5 {[%clk 1:22:35]}  Qxa5 {[%clk 0:16:31]} 0-1


[Site "http://www.chessbomb.com"]

[Event "World Junior Chess Championship U20 2022"]
[White "van der Merwe, Alexander"]
[Black "Salem, Muhsan Shuaib"]
[WhiteFideId "14323842"]
[BlackFideId "9325824"]
[WhiteElo "1746"]
[BlackElo "1227"]
[Result "1-0"]
[Round "04"]
[TimeControl "5400+30"]
[Date "2022.10.14"]
[WhiteClock "0:34:19"]
[BlackClock "0:46:09"]

1. e4 {[%clk 1:30:57]}  c6 {[%clk 1:30:31]} 2. d4 {[%clk 1:31:16]}  d5 {[%clk 1:30:58]} 3. Nc3 {[%clk 1:31:39]}  dxe4 {[%clk 1:31:20]} 4. Nxe4 {[%clk 1:32:03]}  Nf6 {[%clk 1:31:45]} 5. Nxf6+ {[%clk 1:31:59]}  exf6 {[%clk 1:32:10]} 6. c3 {[%clk 1:32:02]}  Be6 {[%clk 1:29:57]} 7. Bd3 {[%clk 1:31:45]}  Bd6 {[%clk 1:29:39]} 8. Qc2 {[%clk 1:27:32]}  c5 {[%clk 1:26:19]} 9. Ne2 {[%clk 1:19:48]}  Nc6 {[%clk 1:25:22]} 10. dxc5 {[%clk 1:14:19]}  Bxc5 {[%clk 1:25:30]} 11. O-O {[%clk 1:11:56]}  Ne5 {[%clk 1:20:48]} 12. Be4 {[%clk 1:09:11]}  Qb6 {[%clk 1:18:32]} 13. b4 {[%clk 1:05:22]}  Be7 {[%clk 1:14:55]} 14. Nd4 {[%clk 0:53:21]}  Bc4 {[%clk 1:08:34]} 15. Re1 {[%clk 0:50:27]}  Rd8 {[%clk 0:57:26]} 16. Nf5 {[%clk 0:46:51]}  Bf8 {[%clk 0:52:58]} 17. Be3 {[%clk 0:45:09]}  Qa6 {[%clk 0:51:05]} 18. f4 {[%clk 0:40:26]}  Bd3 {[%clk 0:46:12]} 19. Bxd3 {[%clk 0:39:59]}  Qxd3 {[%clk 0:45:45]} 20. Qxd3 {[%clk 0:35:51]}  Nxd3 {[%clk 0:46:09]} 21. Re2 {[%clk 0:34:19]} 1-0


[Site "http://www.chessbomb.com"]

[Event "World Junior Chess Championship U20 2022"]
[White "Ahmed, Younes Alkhemeiri"]
[Black "Monferrato, Rocco"]
[WhiteFideId "9324585"]
[BlackFideId "3016536"]
[WhiteElo "1139"]
[BlackElo "1563"]
[Result "0-1"]
[Round "04"]
[TimeControl "5400+30"]
[Date "2022.10.14"]
[WhiteClock "0:56:39"]
[BlackClock "0:38:17"]

1. d4 {[%clk 1:30:58]}  d5 {[%clk 1:30:53]} 2. Bf4 {[%clk 1:31:22]}  Nf6 {[%clk 1:31:09]} 3. e3 {[%clk 1:31:42]}  Bf5 {[%clk 1:31:12]} 4. Nf3 {[%clk 1:31:47]}  e6 {[%clk 1:31:11]} 5. Nbd2 {[%clk 1:32:00]}  c5 {[%clk 1:29:16]} 6. c3 {[%clk 1:31:49]}  Nbd7 {[%clk 1:28:25]} 7. Be2 {[%clk 1:31:00]}  Be7 {[%clk 1:28:26]} 8. O-O {[%clk 1:30:38]}  Nh5 {[%clk 1:26:49]} 9. Bg3 {[%clk 1:28:17]}  Nxg3 {[%clk 1:23:43]} 10. fxg3 {[%clk 1:28:03]}  O-O {[%clk 1:23:56]} 11. Bb5 {[%clk 1:26:42]}  a6 {[%clk 1:19:11]} 12. Ba4 {[%clk 1:26:08]}  b5 {[%clk 1:16:10]} 13. Bc2 {[%clk 1:26:29]}  Bxc2 {[%clk 1:16:28]} 14. Qxc2 {[%clk 1:26:52]}  cxd4 {[%clk 1:15:11]} 15. exd4 {[%clk 1:26:06]}  Nb6 {[%clk 1:11:15]} 16. b3 {[%clk 1:25:16]}  Rc8 {[%clk 1:10:42]} 17. Qb2 {[%clk 1:21:36]}  b4 {[%clk 1:00:32]} 18. cxb4 {[%clk 1:19:36]}  Bxb4 {[%clk 1:00:38]} 19. a3 {[%clk 1:19:59]}  Bc3 {[%clk 0:59:46]} 20. Qa2 {[%clk 1:17:37]}  Bxa1 {[%clk 0:59:18]} 21. Qxa1 {[%clk 1:18:03]}  Rc2 {[%clk 0:56:57]} 22. Qb1 {[%clk 1:17:34]}  Qc7 {[%clk 0:56:12]} 23. Ng5 {[%clk 1:16:09]}  h6 {[%clk 0:53:49]} 24. Ngf3 {[%clk 1:11:48]}  Rc8 {[%clk 0:52:30]} 25. Kf2 {[%clk 1:01:21]}  Nd7 {[%clk 0:50:26]} 26. Ke2 {[%clk 0:59:17]}  Qa5 {[%clk 0:42:43]} 27. a4 {[%clk 0:57:43]}  Nf6 {[%clk 0:41:26]} 28. Rd1 {[%clk 0:56:39]}  Ne4 {[%clk 0:38:17]} 0-1


[Site "http://www.chessbomb.com"]

[Event "World Junior Chess Championship U20 2022"]
[White "Esipenko, Andrey"]
[Black "Kozak, Adam"]
[WhiteFideId "24175439"]
[BlackFideId "753246"]
[WhiteElo "2668"]
[BlackElo "2516"]
[Result "1/2-1/2"]
[Round "05"]
[TimeControl "5400+30"]
[Date "2022.10.15"]
[WhiteClock "0:31:33"]
[BlackClock "0:14:51"]

1. e4 {[%clk 1:30:56]}  e5 {[%clk 1:28:40]} 2. Nf3 {[%clk 1:31:17]}  Nc6 {[%clk 1:28:48]} 3. Bb5 {[%clk 1:31:43]}  Nf6 {[%clk 1:28:58]} 4. d3 {[%clk 1:32:04]}  Bc5 {[%clk 1:28:51]} 5. c3 {[%clk 1:32:12]}  O-O {[%clk 1:27:57]} 6. O-O {[%clk 1:32:18]}  Re8 {[%clk 1:27:08]} 7. Bg5 {[%clk 1:32:25]}  h6 {[%clk 1:22:25]} 8. Bh4 {[%clk 1:32:49]}  a6 {[%clk 1:14:44]} 9. Ba4 {[%clk 1:33:10]}  b5 {[%clk 1:09:42]} 10. Bb3 {[%clk 1:33:26]}  Be7 {[%clk 1:08:49]} 11. a4 {[%clk 1:30:09]}  b4 {[%clk 0:59:33]} 12. a5 {[%clk 1:20:46]}  d6 {[%clk 0:43:16]} 13. Bxf6 {[%clk 1:12:08]}  Bxf6 {[%clk 0:43:34]} 14. Bd5 {[%clk 1:12:25]}  Bd7 {[%clk 0:40:38]} 15. Qb3 {[%clk 1:12:21]}  Be6 {[%clk 0:39:07]} 16. Qc4 {[%clk 1:08:58]}  Bxd5 {[%clk 0:33:12]} 17. exd5 {[%clk 1:08:36]}  Ne7 {[%clk 0:32:57]} 18. cxb4 {[%clk 1:08:59]}  c6 {[%clk 0:28:49]} 19. Nc3 {[%clk 1:03:54]}  cxd5 {[%clk 0:27:40]} 20. Nxd5 {[%clk 1:04:20]}  Nxd5 {[%clk 0:27:43]} 21. Qxd5 {[%clk 1:04:48]}  Rb8 {[%clk 0:28:04]} 22. Qc6 {[%clk 0:53:33]}  Rxb4 {[%clk 0:20:14]} 23. Qxa6 {[%clk 0:53:48]}  d5 {[%clk 0:20:28]} 24. Rfe1 {[%clk 0:30:37]}  e4 {[%clk 0:16:33]} 25. dxe4 {[%clk 0:30:43]}  dxe4 {[%clk 0:16:56]} 26. Rad1 {[%clk 0:30:27]}  Qa8 {[%clk 0:16:24]} 27. Qxa8 {[%clk 0:30:45]}  Rxa8 {[%clk 0:16:48]} 28. Nd2 {[%clk 0:31:11]}  Rxa5 {[%clk 0:14:19]} 29. Rxe4 {[%clk 0:30:45]}  Rxe4 {[%clk 0:14:28]} 30. Nxe4 {[%clk 0:31:11]}  Bxb2 {[%clk 0:14:51]} 31. g3 {[%clk 0:31:33]} 1/2-1/2


[Site "http://www.chessbomb.com"]